[Event "*** SCC Grand Prix: Titled Tuesday Blitz"]
[Site "Chess.com"]
[Date "2020.07.07"]
[Round "9"]
[White "Anton_Demchenko"]
[Black "RobertoJBM"]
[Result "1-0"]
[WhiteElo "2869"]
[BlackElo "2711"]
[TimeControl "180+1"]
[EndTime "11:48:27 PDT"]
[Termination "Anton_Demchenko won on time"]

1. d4 {[%clk 0:03:00.9]} 1... d5 {[%clk 0:02:59.5]} 2. Nf3 {[%clk 0:02:57.8]}
2... c6 {[%clk 0:03:00]} 3. Bf4 {[%clk 0:02:57.9]} 3... Qb6 {[%clk 0:02:59.6]}
4. Nbd2 {[%clk 0:02:52.9]} 4... Bf5 {[%clk 0:03:00]} 5. e3 {[%clk 0:02:46.6]}
5... Nd7 {[%clk 0:02:56.8]} 6. Qc1 {[%clk 0:02:36.7]} 6... e6 {[%clk 0:02:55.4]}
7. c4 {[%clk 0:02:36.6]} 7... Ngf6 {[%clk 0:02:54.5]} 8. Be2 {[%clk 0:02:36.4]}
8... h6 {[%clk 0:02:50]} 9. h3 {[%clk 0:02:36.6]} 9... Be7 {[%clk 0:02:48.8]}
10. O-O {[%clk 0:02:36.6]} 10... a5 {[%clk 0:02:46.7]} 11. b3 {[%clk 0:02:26.4]}
11... a4 {[%clk 0:02:43]} 12. c5 {[%clk 0:01:57.6]} 12... Qa5 {[%clk 0:02:42.4]}
13. Qa3 {[%clk 0:01:40.8]} 13... b5 {[%clk 0:01:57.1]} 14. b4 {[%clk 0:01:40.5]}
14... Qd8 {[%clk 0:01:55.8]} 15. Bd3 {[%clk 0:01:41]} 15... O-O {[%clk
0:01:52.6]} 16. Rfe1 {[%clk 0:01:39.5]} 16... Ne4 {[%clk 0:01:43.8]} 17. Rad1
{[%clk 0:01:36.1]} 17... Ndf6 {[%clk 0:01:42.2]} 18. Ne5 {[%clk 0:01:36.1]}
18... Rc8 {[%clk 0:01:42]} 19. Nf1 {[%clk 0:01:34.2]} 19... Ng5 {[%clk
0:01:40.7]} 20. f3 {[%clk 0:01:27.2]} 20... Bxd3 {[%clk 0:01:36.6]} 21. Qxd3
{[%clk 0:01:23.9]} 21... Nd7 {[%clk 0:01:34.5]} 22. Ng4 {[%clk 0:01:22.3]} 22...
f5 {[%clk 0:01:32.1]} 23. Nf2 {[%clk 0:01:21.4]} 23... Nh7 {[%clk 0:01:22.6]}
24. Bh2 {[%clk 0:01:19.4]} 24... Bh4 {[%clk 0:01:21.6]} 25. Bd6 {[%clk
0:01:10.4]} 25... Rf7 {[%clk 0:01:18.9]} 26. g3 {[%clk 0:01:08.3]} 26... Be7
{[%clk 0:01:17.9]} 27. Be5 {[%clk 0:00:54.1]} 27... Bf6 {[%clk 0:01:12.1]} 28.
f4 {[%clk 0:00:51.4]} 28... g5 {[%clk 0:01:09.3]} 29. Kh2 {[%clk 0:00:47.9]}
29... Bg7 {[%clk 0:01:08]} 30. Nd2 {[%clk 0:00:43.9]} 30... h5 {[%clk
0:00:58.6]} 31. Rg1 {[%clk 0:00:43.3]} 31... g4 {[%clk 0:00:58.8]} 32. Kg2
{[%clk 0:00:39.8]} 32... Ndf6 {[%clk 0:00:55.8]} 33. Rh1 {[%clk 0:00:38.4]}
33... Ne4 {[%clk 0:00:54.4]} 34. Ndxe4 {[%clk 0:00:31.1]} 34... dxe4 {[%clk
0:00:54.4]} 35. Qe2 {[%clk 0:00:32]} 35... Qd5 {[%clk 0:00:53.9]} 36. hxg4
{[%clk 0:00:31.6]} 36... hxg4 {[%clk 0:00:53.1]} 37. Rd2 {[%clk 0:00:26.3]}
37... Nf6 {[%clk 0:00:52.6]} 38. Nd1 {[%clk 0:00:24.5]} 38... Qd7 {[%clk
0:00:51.6]} 39. Nf2 {[%clk 0:00:13.2]} 39... Nd5 {[%clk 0:00:49.7]} 40. Rh4
{[%clk 0:00:10.2]} 40... Bxe5 {[%clk 0:00:48.6]} 41. dxe5 {[%clk 0:00:08.6]}
41... Rh7 {[%clk 0:00:49.1]} 42. Nxg4 {[%clk 0:00:03.5]} 42... fxg4 {[%clk
0:00:39]} 43. Qxg4+ {[%clk 0:00:03.2]} 43... Rg7 {[%clk 0:00:33.9]} 44. Qe2
{[%clk 0:00:03.3]} 44... Kf7 {[%clk 0:00:32.3]} 45. Qh5+ {[%clk 0:00:02.7]}
45... Ke7 {[%clk 0:00:31.6]} 46. Re2 {[%clk 0:00:03]} 46... Rcg8 {[%clk
0:00:31.3]} 47. g4 {[%clk 0:00:03]} 47... Kd8 {[%clk 0:00:30.8]} 48. g5 {[%clk
0:00:03.3]} 48... Nc3 {[%clk 0:00:27.3]} 49. Rf2 {[%clk 0:00:02.9]} 49... Qd3
{[%clk 0:00:26.1]} 50. Rh3 {[%clk 0:00:02.1]} 50... Kc7 {[%clk 0:00:23.1]} 51.
Qh6 {[%clk 0:00:01.6]} 51... Rg6 {[%clk 0:00:21]} 52. Qh7+ {[%clk 0:00:01.7]}
52... R8g7 {[%clk 0:00:20.5]} 53. Qh8 {[%clk 0:00:02.2]} 53... Rg8 {[%clk
0:00:21]} 54. Qh7+ {[%clk 0:00:02.3]} 54... Qd7 {[%clk 0:00:21.7]} 55. Qxd7+
{[%clk 0:00:02.1]} 55... Kxd7 {[%clk 0:00:22.6]} 56. Rd2+ {[%clk 0:00:02.7]}
56... Nd5 {[%clk 0:00:22.1]} 57. Kf2 {[%clk 0:00:03.2]} 57... Ke8 {[%clk
0:00:21.8]} 58. a3 {[%clk 0:00:03.3]} 58... Kf7 {[%clk 0:00:21.7]} 59. Rd4
{[%clk 0:00:03.6]} 59... Nc3 {[%clk 0:00:20.6]} 60. Rd7+ {[%clk 0:00:03.6]}
60... Ke8 {[%clk 0:00:20.8]} 61. Rhh7 {[%clk 0:00:03.6]} 61... Nd5 {[%clk
0:00:19.6]} 62. Ra7 {[%clk 0:00:03.3]} 62... R6g7 {[%clk 0:00:15.2]} 63. Rhxg7
{[%clk 0:00:03.4]} 63... Rxg7 {[%clk 0:00:16.1]} 64. Rxg7 {[%clk 0:00:03.9]}
64... Nc3 {[%clk 0:00:13.8]} 65. Rh7 {[%clk 0:00:02.7]} 65... Kf8 {[%clk
0:00:13.5]} 66. g6 {[%clk 0:00:03.1]} 66... Nb1 {[%clk 0:00:13.5]} 67. Rf7+
{[%clk 0:00:03.3]} 67... Kg8 {[%clk 0:00:13.8]} 68. f5 {[%clk 0:00:02.9]} 68...
Nxa3 {[%clk 0:00:14.3]} 69. fxe6 {[%clk 0:00:03.1]} 69... Nc4 {[%clk 0:00:09.6]}
70. e7 {[%clk 0:00:03.5]} 70... Nd6 {[%clk 0:00:10.5]} 71. cxd6 {[%clk
0:00:03.8]} 1-0

[Event "*** SCC Grand Prix: Titled Tuesday Blitz"]
[Site "Chess.com"]
[Date "2020.07.07"]
[Round "9"]
[White "Tekushka"]
[Black "aNaartjieZA"]
[Result "1-0"]
[WhiteElo "2371"]
[BlackElo "2513"]
[TimeControl "180+1"]
[EndTime "11:48:37 PDT"]
[Termination "Tekushka won by checkmate"]

1. d4 {[%clk 0:03:00.9]} 1... Nf6 {[%clk 0:02:59.2]} 2. c4 {[%clk 0:03:01]} 2...
c5 {[%clk 0:02:59.3]} 3. d5 {[%clk 0:03:00.4]} 3... e5 {[%clk 0:02:59.3]} 4. Nc3
{[%clk 0:02:59.8]} 4... d6 {[%clk 0:02:59.5]} 5. e4 {[%clk 0:03:00]} 5... Nbd7
{[%clk 0:02:59.7]} 6. Bd3 {[%clk 0:02:59.7]} 6... Be7 {[%clk 0:02:59.7]} 7. Nge2
{[%clk 0:02:59.8]} 7... h5 {[%clk 0:02:59.9]} 8. h4 {[%clk 0:02:54]} 8... Nf8
{[%clk 0:02:49.8]} 9. f3 {[%clk 0:02:51.4]} 9... N6d7 {[%clk 0:02:45.2]} 10. g3
{[%clk 0:02:50.7]} 10... a6 {[%clk 0:02:44.6]} 11. a4 {[%clk 0:02:48.9]} 11...
g5 {[%clk 0:02:44.7]} 12. hxg5 {[%clk 0:02:38.6]} 12... Bxg5 {[%clk 0:02:45.6]}
13. f4 {[%clk 0:02:25.3]} 13... Bf6 {[%clk 0:02:40.6]} 14. Be3 {[%clk
0:02:21.5]} 14... h4 {[%clk 0:02:29.1]} 15. f5 {[%clk 0:02:05.3]} 15... Rg8
{[%clk 0:02:26.2]} 16. gxh4 {[%clk 0:02:01.2]} 16... Bxh4+ {[%clk 0:02:25.9]}
17. Kd2 {[%clk 0:02:01.4]} 17... Bg5 {[%clk 0:02:25.3]} 18. Qg1 {[%clk
0:01:50.6]} 18... Bxe3+ {[%clk 0:02:22.9]} 19. Qxe3 {[%clk 0:01:50.6]} 19... Nf6
{[%clk 0:02:18.1]} 20. Kc2 {[%clk 0:01:38.3]} 20... Ng4 {[%clk 0:02:15.6]} 21.
Qd2 {[%clk 0:01:38.5]} 21... Nf6 {[%clk 0:01:54]} 22. Rag1 {[%clk 0:01:36.8]}
22... Rxg1 {[%clk 0:01:53]} 23. Rxg1 {[%clk 0:01:36.6]} 23... Qe7 {[%clk
0:01:51.9]} 24. Qh6 {[%clk 0:01:26.8]} 24... Bd7 {[%clk 0:01:49.4]} 25. Rg7
{[%clk 0:01:26.5]} 25... O-O-O {[%clk 0:01:45.1]} 26. Ng3 {[%clk 0:01:19.6]}
26... N8h7 {[%clk 0:01:13.9]} 27. Rxh7 {[%clk 0:01:13]} 27... Nxh7 {[%clk
0:01:13.5]} 28. Qxh7 {[%clk 0:01:13.2]} 28... Qg5 {[%clk 0:01:13.7]} 29. Nge2
{[%clk 0:01:09.9]} 29... Qf6 {[%clk 0:01:11.9]} 30. Qh3 {[%clk 0:01:00.7]} 30...
Rh8 {[%clk 0:01:11.2]} 31. Qg4 {[%clk 0:00:59.9]} 31... Rh2 {[%clk 0:01:07.4]}
32. b3 {[%clk 0:00:56.8]} 32... Rh1 {[%clk 0:01:04.1]} 33. Nd1 {[%clk
0:00:54.1]} 33... Kc7 {[%clk 0:00:59.5]} 34. Nf2 {[%clk 0:00:47.6]} 34... Rh2
{[%clk 0:00:58.1]} 35. Qg3 {[%clk 0:00:44.5]} 35... Rh8 {[%clk 0:00:55]} 36. Nc3
{[%clk 0:00:37.5]} 36... Qh6 {[%clk 0:00:53.2]} 37. Ncd1 {[%clk 0:00:35.9]}
37... f6 {[%clk 0:00:46.5]} 38. Ne3 {[%clk 0:00:34.4]} 38... Qf4 {[%clk
0:00:42.9]} 39. Qxf4 {[%clk 0:00:33.4]} 39... exf4 {[%clk 0:00:43]} 40. Neg4
{[%clk 0:00:33.2]} 40... Be8 {[%clk 0:00:38.6]} 41. Nxf6 {[%clk 0:00:27.1]}
41... Rh2 {[%clk 0:00:38.4]} 42. Ng4 {[%clk 0:00:25.8]} 42... Rg2 {[%clk
0:00:37.5]} 43. Bf1 {[%clk 0:00:22.9]} 43... Rg3 {[%clk 0:00:37.3]} 44. e5
{[%clk 0:00:18.8]} 44... dxe5 {[%clk 0:00:33.7]} 45. Nxe5 {[%clk 0:00:18.3]}
45... Bd7 {[%clk 0:00:30]} 46. Nxd7 {[%clk 0:00:17.7]} 46... Kxd7 {[%clk
0:00:30.2]} 47. Bd3 {[%clk 0:00:16.2]} 47... Rf3 {[%clk 0:00:28.5]} 48. Ne4
{[%clk 0:00:15.4]} 48... b6 {[%clk 0:00:27.2]} 49. Kd2 {[%clk 0:00:14.6]} 49...
Rh3 {[%clk 0:00:26.9]} 50. Bc2 {[%clk 0:00:13.5]} 50... Rh2+ {[%clk 0:00:26.7]}
51. Kc3 {[%clk 0:00:13.2]} 51... f3 {[%clk 0:00:27]} 52. Bd3 {[%clk 0:00:11.2]}
52... Rh4 {[%clk 0:00:19.8]} 53. a5 {[%clk 0:00:09.8]} 53... bxa5 {[%clk
0:00:18.4]} 54. Nxc5+ {[%clk 0:00:09.9]} 54... Kd6 {[%clk 0:00:18.3]} 55. Ne4+
{[%clk 0:00:09.7]} 55... Ke5 {[%clk 0:00:17.8]} 56. Nd2 {[%clk 0:00:09.4]} 56...
Rf4 {[%clk 0:00:16.1]} 57. Nf1 {[%clk 0:00:08.2]} 57... f2 {[%clk 0:00:16]} 58.
Kd2 {[%clk 0:00:08]} 58... Kd6 {[%clk 0:00:15.7]} 59. Ke3 {[%clk 0:00:08]} 59...
Rh4 {[%clk 0:00:15.7]} 60. f6 {[%clk 0:00:07.8]} 60... Rh6 {[%clk 0:00:15.4]}
61. Kxf2 {[%clk 0:00:07.4]} 61... Rxf6+ {[%clk 0:00:15.5]} 62. Ke3 {[%clk
0:00:08.1]} 62... Kc5 {[%clk 0:00:16]} 63. Nd2 {[%clk 0:00:07.7]} 63... Kb4
{[%clk 0:00:16.3]} 64. Kd4 {[%clk 0:00:07.1]} 64... Rf8 {[%clk 0:00:14.5]} 65.
d6 {[%clk 0:00:06.5]} 65... Rf4+ {[%clk 0:00:13.4]} 66. Kd5 {[%clk 0:00:06.2]}
66... Rf2 {[%clk 0:00:13.7]} 67. Ne4 {[%clk 0:00:05.8]} 67... Rf8 {[%clk
0:00:13.3]} 68. c5 {[%clk 0:00:05.3]} 68... Kxb3 {[%clk 0:00:13.6]} 69. Bxa6
{[%clk 0:00:04.9]} 69... a4 {[%clk 0:00:13.6]} 70. Bc4+ {[%clk 0:00:05.1]} 70...
Kb4 {[%clk 0:00:13.4]} 71. d7 {[%clk 0:00:05.2]} 71... a3 {[%clk 0:00:13.4]} 72.
c6 {[%clk 0:00:05.1]} 72... Rf5+ {[%clk 0:00:13.2]} 73. Kd4 {[%clk 0:00:04.5]}
73... Rc5 {[%clk 0:00:12.6]} 74. d8=Q {[%clk 0:00:04]} 74... Rxc4+ {[%clk
0:00:12.4]} 75. Kd3 {[%clk 0:00:04]} 75... Rc1 {[%clk 0:00:12.5]} 76. Qb6+
{[%clk 0:00:03.8]} 76... Ka4 {[%clk 0:00:12.5]} 77. Qa6+ {[%clk 0:00:03.9]}
77... Kb3 {[%clk 0:00:12.9]} 78. Qb5+ {[%clk 0:00:03.6]} 78... Ka2 {[%clk
0:00:13.1]} 79. Nc3+ {[%clk 0:00:03.6]} 79... Ka1 {[%clk 0:00:13.1]} 80. Qb3
{[%clk 0:00:03]} 80... Rxc3+ {[%clk 0:00:12.4]} 81. Kxc3 {[%clk 0:00:02.6]}
81... a2 {[%clk 0:00:12.8]} 82. Qb2# {[%clk 0:00:02.9]} 1-0

[Event "*** SCC Grand Prix: Titled Tuesday Blitz"]
[Site "Chess.com"]
[Date "2020.07.07"]
[Round "9"]
[White "Parkas"]
[Black "Kopytkin"]
[Result "0-1"]
[WhiteElo "2350"]
[BlackElo "2465"]
[TimeControl "180+1"]
[EndTime "11:48:47 PDT"]
[Termination "Kopytkin won by checkmate"]

1. d4 {[%clk 0:03:00.9]} 1... d5 {[%clk 0:02:56.7]} 2. Nc3 {[%clk 0:03:01]} 2...
Bf5 {[%clk 0:02:54.5]} 3. f3 {[%clk 0:03:00]} 3... e6 {[%clk 0:02:48.2]} 4. e4
{[%clk 0:02:54.9]} 4... Bg6 {[%clk 0:02:46.3]} 5. Nge2 {[%clk 0:02:37.8]} 5...
Nf6 {[%clk 0:02:46.1]} 6. Qd3 {[%clk 0:02:10.2]} 6... c5 {[%clk 0:02:41.6]} 7.
Qb5+ {[%clk 0:01:59.7]} 7... Qd7 {[%clk 0:02:40.5]} 8. e5 {[%clk 0:01:59.4]}
8... Ng8 {[%clk 0:02:35.1]} 9. dxc5 {[%clk 0:01:53.4]} 9... Nc6 {[%clk
0:02:29.7]} 10. Bf4 {[%clk 0:01:44]} 10... Bxc2 {[%clk 0:02:09.5]} 11. Rc1
{[%clk 0:01:38]} 11... Bf5 {[%clk 0:02:01]} 12. g4 {[%clk 0:01:37.5]} 12... Bg6
{[%clk 0:02:00.9]} 13. Ng3 {[%clk 0:01:30.2]} 13... Nge7 {[%clk 0:01:58.9]} 14.
a3 {[%clk 0:01:03.6]} 14... a6 {[%clk 0:01:55.5]} 15. Qa4 {[%clk 0:01:00.7]}
15... d4 {[%clk 0:01:39.4]} 16. Nb5 {[%clk 0:00:58.2]} 16... Nd5 {[%clk
0:01:37.2]} 17. Nxd4 {[%clk 0:00:31.8]} 17... Nxf4 {[%clk 0:01:14.7]} 18. Nxc6
{[%clk 0:00:30.6]} 18... Nd5 {[%clk 0:01:13]} 19. Bb5 {[%clk 0:00:11.9]} 19...
Nc7 {[%clk 0:01:08.6]} 20. Rd1 {[%clk 0:00:06.3]} 20... axb5 {[%clk 0:00:51.7]}
21. Rxd7 {[%clk 0:00:05.1]} 21... bxa4 {[%clk 0:00:49.7]} 22. Rxc7 {[%clk
0:00:04]} 22... bxc6 {[%clk 0:00:49.7]} 23. h4 {[%clk 0:00:03.4]} 23... Be7
{[%clk 0:00:46.1]} 24. h5 {[%clk 0:00:03]} 24... Bd3 {[%clk 0:00:46.3]} 25. Rxc6
{[%clk 0:00:03.3]} 25... Kd7 {[%clk 0:00:42.1]} 26. Rb6 {[%clk 0:00:03]} 26...
Rhb8 {[%clk 0:00:36.8]} 27. Kd2 {[%clk 0:00:02.4]} 27... Bc4 {[%clk 0:00:29.4]}
28. Ne4 {[%clk 0:00:02.8]} 28... Rxb6 {[%clk 0:00:28.1]} 29. cxb6 {[%clk
0:00:03.7]} 29... Bd5 {[%clk 0:00:27.5]} 30. Kc3 {[%clk 0:00:02]} 30... Rb8
{[%clk 0:00:26.4]} 31. Rd1 {[%clk 0:00:01.3]} 31... Kc6 {[%clk 0:00:25.9]} 32.
Kd4 {[%clk 0:00:01.8]} 32... Rxb6 {[%clk 0:00:25]} 33. Ke3 {[%clk 0:00:02.5]}
33... Rb3+ {[%clk 0:00:23.7]} 34. Kf4 {[%clk 0:00:02.6]} 34... g5+ {[%clk
0:00:18.2]} 35. Nxg5 {[%clk 0:00:02.1]} 35... Bxg5+ {[%clk 0:00:15.6]} 36. Kxg5
{[%clk 0:00:03]} 36... Rxf3 {[%clk 0:00:15.6]} 37. Rc1+ {[%clk 0:00:03.5]} 37...
Kd7 {[%clk 0:00:15.6]} 38. Rd1 {[%clk 0:00:04]} 38... Ke7 {[%clk 0:00:15.2]} 39.
Rd4 {[%clk 0:00:04.4]} 39... Bb3 {[%clk 0:00:11.6]} 40. Rb4 {[%clk 0:00:04.7]}
40... Rd3 {[%clk 0:00:11.1]} 41. Rb7+ {[%clk 0:00:04.8]} 41... Rd7 {[%clk
0:00:11.2]} 42. Rb4 {[%clk 0:00:05.2]} 42... Rc7 {[%clk 0:00:11]} 43. Kh6 {[%clk
0:00:04.6]} 43... f6 {[%clk 0:00:10.6]} 44. exf6+ {[%clk 0:00:04.7]} 44... Kxf6
{[%clk 0:00:10.5]} 45. Rf4+ {[%clk 0:00:05.5]} 45... Ke5 {[%clk 0:00:10.6]} 46.
Rb4 {[%clk 0:00:05.6]} 46... Bc2 {[%clk 0:00:10.5]} 47. g5 {[%clk 0:00:05.8]}
47... Bf5 {[%clk 0:00:09.9]} 48. Rb5+ {[%clk 0:00:06]} 48... Kf4 {[%clk
0:00:09.7]} 49. Rb4+ {[%clk 0:00:06.6]} 49... Be4 {[%clk 0:00:10]} 50. Rxa4
{[%clk 0:00:06.8]} 50... e5 {[%clk 0:00:10.3]} 51. Rb4 {[%clk 0:00:06.6]} 51...
Rc6+ {[%clk 0:00:10.5]} 52. Kg7 {[%clk 0:00:06.6]} 52... Rd6 {[%clk 0:00:09]}
53. a4 {[%clk 0:00:04.2]} 53... Rd7+ {[%clk 0:00:09.1]} 54. Kf6 {[%clk
0:00:04.2]} 54... Rd6+ {[%clk 0:00:08.6]} 55. Kg7 {[%clk 0:00:04.6]} 55... Ra6
{[%clk 0:00:09.1]} 56. b3 {[%clk 0:00:04.4]} 56... Kf5 {[%clk 0:00:09.3]} 57. g6
{[%clk 0:00:02.3]} 57... hxg6 {[%clk 0:00:09]} 58. hxg6 {[%clk 0:00:03]} 58...
Rxg6+ {[%clk 0:00:09]} 59. Kf7 {[%clk 0:00:03.9]} 59... Ra6 {[%clk 0:00:09.4]}
60. Ke7 {[%clk 0:00:04.1]} 60... Bd5 {[%clk 0:00:09.6]} 61. Rb5 {[%clk 0:00:04]}
61... Ke4 {[%clk 0:00:08.2]} 62. Kd7 {[%clk 0:00:04]} 62... Kd4 {[%clk
0:00:08.4]} 63. Kc7 {[%clk 0:00:04.2]} 63... e4 {[%clk 0:00:08.5]} 64. Kb8
{[%clk 0:00:03.2]} 64... Ra8+ {[%clk 0:00:08.1]} 65. Kc7 {[%clk 0:00:03.2]}
65... Re8 {[%clk 0:00:08.3]} 66. a5 {[%clk 0:00:03.4]} 66... e3 {[%clk
0:00:08.2]} 67. Rb4+ {[%clk 0:00:03.5]} 67... Kd3 {[%clk 0:00:08.1]} 68. Rb5
{[%clk 0:00:03.5]} 68... Be4 {[%clk 0:00:08.2]} 69. Kd7 {[%clk 0:00:03.8]} 69...
Rh8 {[%clk 0:00:07.4]} 70. Rb6 {[%clk 0:00:03.6]} 70... e2 {[%clk 0:00:07.8]}
71. Rd6+ {[%clk 0:00:03.9]} 71... Ke3 {[%clk 0:00:08.2]} 72. b4 {[%clk
0:00:03.7]} 72... e1=Q {[%clk 0:00:08.5]} 73. b5 {[%clk 0:00:04.1]} 73... Qxa5
{[%clk 0:00:08.3]} 74. b6 {[%clk 0:00:03.6]} 74... Qb5+ {[%clk 0:00:08.4]} 75.
Kc7 {[%clk 0:00:03.8]} 75... Rh7+ {[%clk 0:00:08.7]} 76. Kd8 {[%clk 0:00:04.1]}
76... Qg5+ {[%clk 0:00:07.8]} 77. Kc8 {[%clk 0:00:03.5]} 77... Qg8+ {[%clk
0:00:07.8]} 78. Rd8 {[%clk 0:00:03.8]} 78... Qc4+ {[%clk 0:00:07.8]} 79. Kb8
{[%clk 0:00:04.3]} 79... Qa6 {[%clk 0:00:07.6]} 80. Rd7 {[%clk 0:00:03.2]} 80...
Qxb6+ {[%clk 0:00:07.5]} 81. Kc8 {[%clk 0:00:02.5]} 81... Qc6+ {[%clk
0:00:07.7]} 82. Kb8 {[%clk 0:00:02.7]} 82... Qb5+ {[%clk 0:00:06.2]} 83. Ka7
{[%clk 0:00:02.5]} 83... Qxd7+ {[%clk 0:00:05.7]} 84. Ka6 {[%clk 0:00:02.3]}
84... Qd6+ {[%clk 0:00:06.1]} 85. Ka5 {[%clk 0:00:02.6]} 85... Ra7+ {[%clk
0:00:06.4]} 86. Kb5 {[%clk 0:00:02.4]} 86... Bd3# {[%clk 0:00:07]} 0-1

[Event "*** SCC Grand Prix: Titled Tuesday Blitz"]
[Site "Chess.com"]
[Date "2020.07.07"]
[Round "9"]
[White "viditchess"]
[Black "Onischuk_V"]
[Result "1/2-1/2"]
[WhiteElo "3013"]
[BlackElo "2898"]
[TimeControl "180+1"]
[EndTime "11:49:02 PDT"]
[Termination "Game drawn - insufficient material"]

1. d4 {[%clk 0:03:00.9]} 1... d6 {[%clk 0:02:59.9]} 2. Nf3 {[%clk 0:03:00.2]}
2... g6 {[%clk 0:03:00.3]} 3. g3 {[%clk 0:02:59.2]} 3... Bg7 {[%clk 0:03:00.6]}
4. Bg2 {[%clk 0:03:00]} 4... Nf6 {[%clk 0:03:00.7]} 5. c4 {[%clk 0:02:59.7]}
5... O-O {[%clk 0:03:00.9]} 6. Nc3 {[%clk 0:02:59.1]} 6... Nbd7 {[%clk
0:03:01.1]} 7. O-O {[%clk 0:02:59]} 7... e5 {[%clk 0:03:01.3]} 8. e4 {[%clk
0:02:59.1]} 8... c6 {[%clk 0:03:00.6]} 9. Be3 {[%clk 0:02:59.1]} 9... Qe7 {[%clk
0:02:59.3]} 10. Re1 {[%clk 0:02:57.8]} 10... b6 {[%clk 0:02:59.5]} 11. h3 {[%clk
0:02:56.2]} 11... Bb7 {[%clk 0:03:00]} 12. Qc2 {[%clk 0:02:53.5]} 12... Rfe8
{[%clk 0:02:58.6]} 13. Rad1 {[%clk 0:02:52.6]} 13... Rac8 {[%clk 0:02:44.7]} 14.
a3 {[%clk 0:02:46.7]} 14... a6 {[%clk 0:02:41.4]} 15. dxe5 {[%clk 0:02:23.2]}
15... dxe5 {[%clk 0:02:40.6]} 16. b4 {[%clk 0:02:23.9]} 16... c5 {[%clk
0:02:28]} 17. b5 {[%clk 0:02:20.5]} 17... a5 {[%clk 0:02:19.1]} 18. Nd5 {[%clk
0:01:59.8]} 18... Qf8 {[%clk 0:02:16.4]} 19. Nd2 {[%clk 0:01:54.2]} 19... h6
{[%clk 0:02:13.6]} 20. h4 {[%clk 0:01:50.4]} 20... Red8 {[%clk 0:01:59.4]} 21.
Bh3 {[%clk 0:01:50.4]} 21... Rb8 {[%clk 0:01:58.3]} 22. a4 {[%clk 0:01:46]}
22... Ba8 {[%clk 0:01:51.2]} 23. Nb1 {[%clk 0:01:45.6]} 23... Ne8 {[%clk
0:01:47.1]} 24. Nbc3 {[%clk 0:01:40.3]} 24... Ndf6 {[%clk 0:01:44.6]} 25. Nxf6+
{[%clk 0:01:13.3]} 25... Nxf6 {[%clk 0:01:43.8]} 26. f3 {[%clk 0:01:11.4]} 26...
Ne8 {[%clk 0:01:25.1]} 27. Bd7 {[%clk 0:01:06.7]} 27... Nd6 {[%clk 0:01:23.1]}
28. Bc6 {[%clk 0:01:03.8]} 28... Nxc4 {[%clk 0:01:18.3]} 29. Nd5 {[%clk
0:00:54]} 29... Nxe3 {[%clk 0:01:13.9]} 30. Rxe3 {[%clk 0:00:54.9]} 30... Rd6
{[%clk 0:01:07.7]} 31. Bxa8 {[%clk 0:00:55]} 31... Rxa8 {[%clk 0:01:07.5]} 32.
Red3 {[%clk 0:00:53]} 32... Kh7 {[%clk 0:00:58.7]} 33. g4 {[%clk 0:00:34.6]}
33... Rc8 {[%clk 0:00:50.3]} 34. Qc4 {[%clk 0:00:32.4]} 34... Re6 {[%clk
0:00:43.4]} 35. Ne3 {[%clk 0:00:30.5]} 35... Qe7 {[%clk 0:00:41.3]} 36. Ng2
{[%clk 0:00:18.4]} 36... Qe8 {[%clk 0:00:37.3]} 37. Rd7 {[%clk 0:00:17.8]} 37...
Bf8 {[%clk 0:00:35.2]} 38. R1d5 {[%clk 0:00:16.7]} 38... Be7 {[%clk 0:00:33.2]}
39. Kh2 {[%clk 0:00:15.1]} 39... Kg7 {[%clk 0:00:30.8]} 40. Kh3 {[%clk 0:00:15]}
40... Rd8 {[%clk 0:00:28.7]} 41. Rxd8 {[%clk 0:00:14.9]} 41... Bxd8 {[%clk
0:00:28.9]} 42. Ne3 {[%clk 0:00:15.5]} 42... Qe7 {[%clk 0:00:29]} 43. Ng2 {[%clk
0:00:15.5]} 43... Rd6 {[%clk 0:00:26.8]} 44. Kg3 {[%clk 0:00:14.3]} 44... Rxd5
{[%clk 0:00:25.7]} 45. Qxd5 {[%clk 0:00:15.2]} 45... Qc7 {[%clk 0:00:19.2]} 46.
Ne3 {[%clk 0:00:14.9]} 46... Qe7 {[%clk 0:00:19.4]} 47. Ng2 {[%clk 0:00:13.1]}
47... Qf6 {[%clk 0:00:18.5]} 48. Kf2 {[%clk 0:00:12.3]} 48... Qe7 {[%clk
0:00:15.2]} 49. Ke2 {[%clk 0:00:11.4]} 49... Bc7 {[%clk 0:00:13.7]} 50. Kd3
{[%clk 0:00:11.4]} 50... c4+ {[%clk 0:00:11.6]} 51. Qxc4 {[%clk 0:00:10.7]}
51... Bd6 {[%clk 0:00:10.1]} 52. h5 {[%clk 0:00:10.3]} 52... Bc5 {[%clk
0:00:08.1]} 53. hxg6 {[%clk 0:00:10.6]} 53... fxg6 {[%clk 0:00:08]} 54. Qd5
{[%clk 0:00:10.8]} 54... Qf6 {[%clk 0:00:04.3]} 55. Ke2 {[%clk 0:00:10.8]} 55...
h5 {[%clk 0:00:03.8]} 56. Qd7+ {[%clk 0:00:09.5]} 56... Qf7 {[%clk 0:00:03.8]}
57. Qxf7+ {[%clk 0:00:05]} 57... Kxf7 {[%clk 0:00:03.8]} 58. gxh5 {[%clk
0:00:02.2]} 58... gxh5 {[%clk 0:00:03.7]} 59. Nh4 {[%clk 0:00:03.1]} 59... Kf6
{[%clk 0:00:03.9]} 60. Nf5 {[%clk 0:00:02.7]} 60... Kg5 {[%clk 0:00:04.5]} 61.
Kf1 {[%clk 0:00:03.4]} 61... Kf4 {[%clk 0:00:04.5]} 62. Kg2 {[%clk 0:00:04.1]}
62... Bd4 {[%clk 0:00:04.1]} 63. Ne7 {[%clk 0:00:02.6]} 63... Ke3 {[%clk
0:00:03.5]} 64. Nc6 {[%clk 0:00:01.9]} 64... Kd3 {[%clk 0:00:03.3]} 65. f4
{[%clk 0:00:02.4]} 65... exf4 {[%clk 0:00:02.8]} 66. Kf3 {[%clk 0:00:02.5]}
66... Bc5 {[%clk 0:00:01.4]} 67. e5 {[%clk 0:00:02.9]} 67... Kc4 {[%clk
0:00:01.9]} 68. e6 {[%clk 0:00:03.5]} 68... Kb3 {[%clk 0:00:02.1]} 69. Ne5
{[%clk 0:00:01.2]} 69... Kxa4 {[%clk 0:00:01.5]} 70. Nd7 {[%clk 0:00:01.8]}
70... Bd6 {[%clk 0:00:01.1]} 71. Nxb6+ {[%clk 0:00:02.2]} 71... Kxb5 {[%clk
0:00:01.7]} 72. Nd5 {[%clk 0:00:02.1]} 72... Bc5 {[%clk 0:00:01.9]} 73. Nc3+
{[%clk 0:00:02]} 73... Kc4 {[%clk 0:00:01.9]} 74. Na4 {[%clk 0:00:02.4]} 74...
Bd6 {[%clk 0:00:02.3]} 75. Nb6+ {[%clk 0:00:02.8]} 75... Kb5 {[%clk 0:00:02.7]}
76. Nd5 {[%clk 0:00:02.9]} 76... a4 {[%clk 0:00:03.3]} 77. Nc3+ {[%clk
0:00:03.2]} 77... Kb4 {[%clk 0:00:03.6]} 78. Nxa4 {[%clk 0:00:03.8]} 78... Kxa4
{[%clk 0:00:03.6]} 79. e7 {[%clk 0:00:04.6]} 79... Bxe7 {[%clk 0:00:03.8]} 80.
Kxf4 {[%clk 0:00:05.3]} 80... Kb4 {[%clk 0:00:04.5]} 81. Kg3 {[%clk 0:00:05.8]}
81... Kc4 {[%clk 0:00:05]} 82. Kg2 {[%clk 0:00:06.6]} 82... h4 {[%clk
0:00:05.3]} 83. Kh1 {[%clk 0:00:07.5]} 83... h3 {[%clk 0:00:05.5]} 84. Kh2
{[%clk 0:00:07.9]} 84... Bd6+ {[%clk 0:00:05.6]} 85. Kxh3 {[%clk 0:00:08.8]}
1/2-1/2